[Event "Czech Extraliga 2023-24"]
[Site "Czech Republic"]
[Date "2024.04.07"]
[Round "11.3"]
[White "Jaracz, Pawel"]
[Black "Janik, Igor"]
[Result "1/2-1/2"]
[ECO "B12"]
[WhiteElo "2472"]
[BlackElo "2502"]
[Annotator "TA"]
[PlyCount "58"]
[EventDate "2023.10.14"]
[EventCountry "CZE"]
[SourceTitle "playchess.com"]
[Source "ChessBase"]
[SourceQuality "1"]
[TimeControl "40/5400+30:1800+30"]

{[%evp 16,58,16,13,12,11,18,0,6,4,14,0,0,-1,-5,-15,-17,-12,-6,-27,-40,-59,-33,-66,-27,-28,-32,-27,-12,-4,8,-24,0,0,0,0,0,0,0,0,0,0,0,0,63]} 1. e4 {[%emt 0:00:10]} c6 {[%emt 0:00:04]} 2. d4 {[%emt 0:00:16]} d5 {[%emt 0:00:06]} 3. e5 {[%emt 0:02:11]} Bf5 {[%emt 0:00:20]} 4. c4 {[%emt 0:00:32]} e6 {[%emt 0:00:55]} 5. Nc3 {[%emt 0:00:06]} dxc4 {[%emt 0:00:05]} 6. Bxc4 {[%emt 0:00:14]} Ne7 {[%emt 0:00:32]} 7. Nge2 {[%emt 0:01:03][%cal Bg1e2,Be2g3,Bg3e4,Be4f2][%mdl 32]} Nd7 {[%emt 0:00:28]} 8. O-O {[%emt 0:01:35]} Nb6 {[%emt 0:01:02]} 9. Bb3 {[%emt 0:01:02]} Bg6 {[%emt 0:03:12]} 10. Ng3 {[%emt 0:09:32]} Qd7 {[%emt 0:02:40]} 11. a4 {[%emt 0:10:51]} a5 {[%emt 0:01:00]} 12. Be3 {[%emt 0:06:35]} Ned5 {[%emt 0:00:48]} 13. Nge4 {[%emt 0:04:54]} Be7 {[%emt 0:05:35]} 14. Qf3 {[%emt 0:05:04]} O-O {[%emt 0:05:56]} 15. Rad1 {[%emt 0:01:35]} Nxe3 {[%emt 0:00:26]} 16. fxe3 {[%emt 0:00:21]} Nd5 {[%emt 0:00:10]} 17. Nf2 {[%emt 0:14:03]} Qc7 {[%emt 0:07:11]} 18. Bxd5 {[%emt 0:04:38]} cxd5 {[%emt 0:02:02]} 19. Nd3 {[%emt 0:01:10]} Qb6 {[%emt 0:03:10]} 20. Nb5 {[%emt 0:01:02]} Rac8 {[%emt 0:03:04]} (20... Be4 {with more complications.} 21. Qg4 Rac8 22. Rd2 Rc4) 21. Rd2 {[%emt 0:01:28] Against Rc2} Bxd3 {[%emt 0:04:14]} 22. Rxd3 {[%emt 0:00:04]} Rc2 {[%emt 0:01:52]} 23. b3 {[%emt 0:07:27]} Bb4 {[%emt 0:01:53]} 24. Qd1 {[%emt 0:01:12] The position is equal.} Rc6 {[%emt 0:00:26]} 25. Qg4 {[%emt 0:01:43]} Qd8 {[%emt 0:02:15]} 26. e4 {[%emt 0:00:40]} dxe4 {[%emt 0:01:01]} 27. Rg3 {[%emt 0:01:51]} g6 {[%emt 0:00:08]} 28. Qxe4 {[%emt 0:00:04]} Be7 {[%emt 0:05:07]} 29. Rgf3 {[%emt 0:01:23]} Qd7 {[%emt 0:03:57] Weighted Error Value: White=0.08 (flawless) /Black=0.06 (flawless) .  Mistake:       	---       	Black=1      Inaccurate:     	White=2     	Black=2      OK:         	White=4     	Black=9} ({Black should play} 29... f5 $11 30. exf6 Bxf6) 1/2-1/2

[Event "Czech Extraliga 2023-24"]
[Site "Czech Republic"]
[Date "2024.04.07"]
[Round "11.3"]
[White "Stalmach, Richard"]
[Black "Petr, Martin"]
[Result "0-1"]
[ECO "E03"]
[WhiteElo "2433"]
[BlackElo "2474"]
[Annotator "TA"]
[PlyCount "50"]
[EventDate "2023.10.14"]
[EventCountry "CZE"]
[SourceTitle "playchess.com"]
[Source "ChessBase"]
[SourceQuality "1"]
[TimeControl "40/5400+30:1800+30"]

{[%evp 11,50,0,6,0,3,0,-3,-9,15,-17,-27,-35,-16,-35,0,0,0,0,0,0,0,0,0,-128,-117,-131,-54,-227,-216,-229,-222,-614,-619,-617,-608,-830,-809,-948,-921,-895,-862]} 1. c4 {[%emt 0:00:06]} e6 {[%emt 0:00:08]} 2. g3 {[%emt 0:00:39]} d5 {[%emt 0:00:06]} 3. Bg2 {[%emt 0:00:22]} dxc4 {[%emt 0:00:05]} 4. Qa4+ {[%emt 0:00:18]} Nd7 {[%emt 0:00:47]} 5. Qxc4 {[%emt 0:00:08]} Ngf6 {[%emt 0:01:31]} 6. d4 {[%emt 0:05:20]} a6 {[%emt 0:07:37]} 7. Qc2 {[%emt 0:14:06]} c5 {[%emt 0:00:47]} 8. dxc5 {[%emt 0:02:06]} Bxc5 {[%emt 0:03:40]} 9. Nf3 {[%emt 0:00:41][%cal Bg1f3,Bf3e5,Be5d7][%mdl 32] The position is equal.} b6 {[%emt 0:09:15]} 10. O-O {[%emt 0:26:18][%cal Ob2b4]} Bb7 {[%emt 0:00:15]} 11. Rd1 {[%emt 0:00:23]} Rc8 {[%emt 0:11:34][%cal Oc5f2]} 12. Nc3 {[%emt 0:00:58]} b5 {[%emt 0:00:41] [#] Hoping for ...b4.} 13. Ne5 {[%emt 0:05:35]} Qb6 {[%emt 0:07:20]} 14. Nxd7 $1 {[%emt 0:13:58]} Bxf2+ {[%emt 0:03:49]} 15. Kf1 {[%emt 0:00:13]} Bxg2+ $1 {[%emt 0:00:07]} (15... Nxd7 $2 16. Bxb7 Bg1 17. e3 (17. Bxc8 $2 Qf2#) 17... Qxb7 18. Kxg1 $18) 16. Kxg2 {[%emt 0:00:02]} Nxd7 {[%emt 0:00:02]} 17. Bf4 {[%emt 0:03:02]} (17. Qd3 $11 Ne5 18. Qe4) 17... Bd4 {[%emt 0:07:49] [#] White must now prevent ...e5.} 18. Qd3 {[%emt 0:05:19]} Qc6+ {[%emt 0:01:31]} (18... e5 $17 {...Qc6+ would now be deadly.} 19. Rac1 O-O 20. Bxe5 Qb7+ (20... Nxe5 21. Qxd4 Qxd4 22. Rxd4 $15) 21. e4 (21. Qf3 Qxf3+ 22. exf3 Be3 $17) 21... Bxe5 (21... Nxe5 22. Qxd4 Rfe8 23. Nd5 $15) 22. Qxd7 Qxd7 23. Rxd7 b4) 19. Kh3 $2 {[%emt 0:05:08] Loses the game.} (19. Ne4 $15 O-O (19... Bxb2 20. Rac1 $11) 20. Qxd4) 19... e5 $19 {[%emt 0:02:52]} (19... Bxc3 20. Qxc3 Qxc3 21. bxc3 $19) 20. Ne4 {[%emt 0:04:15]} O-O {[%emt 0:04:38]} 21. e3 $2 {[%emt 0:04:08]} (21. Rac1 Qe6+ 22. Kg2) 21... Bxb2 {[%emt 0:02:21] Black is clearly winning.} 22. Rab1 {[%emt 0:01:29]} exf4 {[%emt 0:03:35]} 23. Rxb2 {[%emt 0:01:25]} Ne5 {[%emt 0:01:12]} 24. Qd4 {[%emt 0:01:09]} Qe6+ {[%emt 0:02:17]} 25. Kg2 {[%emt 0:00:20]} Rc4 {[%emt 0:01:51] Weighted Error Value: White=0.73/Black=0.13 (very precise) .  Loses game:     	White=1     	---        Mistake:       	White=2     	Black=1      Inaccurate:     	White=1     	Black=1      OK:         	White=5     	Black=5      Best:        	White=1     	---        Strong:       	White=1     	Black=1} 0-1

[Event "Czech Extraliga 2023-24"]
[Site "Czech Republic"]
[Date "2024.04.07"]
[Round "11.3"]
[White "Volosin, Leon"]
[Black "L'Ami, Erwin"]
[Result "0-1"]
[ECO "D35"]
[WhiteElo "2400"]
[BlackElo "2627"]
[Annotator "TA"]
[PlyCount "102"]
[EventDate "2023.10.14"]
[EventCountry "CZE"]
[SourceTitle "playchess.com"]
[Source "ChessBase"]
[SourceQuality "1"]
[TimeControl "40/5400+30:1800+30"]

{[%evp 18,102,32,30,29,5,17,12,15,14,27,30,29,30,38,41,34,35,47,43,83,41,64,45,45,45,45,45,45,39,62,39,40,40,60,39,46,46,46,39,46,0,0,0,61,0,0,0,11,0,0,0,0,0,0,0,0,0,0,0,0,8,8,-13,-16,-40,-46,-461,-464,-459,-458,-5501,-2735,-5497,-4809,-12819,-6107,-6168,-12817,-12821,-10959,-6079,-5118,-29987,-29988,-29987,-29988]} 1. d4 {[%emt 0:00:02]} d5 {[%emt 0:00:44]} 2. c4 {[%emt 0:00:05]} e6 {[%emt 0:00:12]} 3. Nc3 {[%emt 0:00:20]} Nf6 {[%emt 0:00:21]} 4. cxd5 {[%emt 0:00:58]} exd5 {[%emt 0:00:08]} 5. Bg5 {[%emt 0:00:04]} c6 {[%emt 0:00:33]} 6. e3 {[%emt 0:03:31]} Bf5 {[%emt 0:01:05]} 7. Qf3 {[%emt 0:00:06]} Bg6 {[%emt 0:00:08]} 8. Bxf6 {[%emt 0:00:06]} Qxf6 {[%emt 0:00:07]} 9. Qxf6 {[%emt 0:00:12]} gxf6 {[%emt 0:00:04]} 10. Nf3 {[%emt 0:04:13]} a5 {[%emt 0:04:38]} 11. Kd2 {[%emt 0:06:40]} Nd7 {[%emt 0:03:48][%cal Bb8d7,Bd7b6,Bb6c8,Bc8d6][%mdl 32]} 12. Bd3 {[%emt 0:00:28]} Nb6 {[%emt 0:09:22] The position is equal.} 13. Nh4 {[%emt 0:02:48]} Bb4 {[%emt 0:05:54]} (13... Nc4+ {simplifies} 14. Bxc4 dxc4 15. Nxg6 hxg6 16. h4 Kd7) 14. a3 {[%emt 0:06:41]} Bxc3+ {[%emt 0:05:18]} 15. bxc3 {[%emt 0:02:14] Threatens to win with Nxg6.} Nc8 {[%emt 0:04:43]} 16. c4 {[%emt 0:25:32]} dxc4 {[%emt 0:06:08]} 17. Bxc4 {[%emt 0:01:10]} Nd6 {[%emt 0:00:12]} 18. Bd3 {[%emt 0:00:30]} O-O-O {[%emt 0:06:22]} 19. Ke2 {[%emt 0:12:59]} a4 {[%emt 0:11:46]} 20. Nxg6 {[%emt 0:03:57]} hxg6 {[%emt 0:02:24]} 21. h4 {[%emt 0:01:05]} f5 {[%emt 0:01:21]} 22. g3 {[%emt 0:00:10]} Kd7 {[%emt 0:03:51]} 23. Rhc1 {[%emt 0:00:49]} Ra8 {[%emt 0:06:00]} 24. Rc5 {[%emt 0:04:01]} b6 {[%emt 0:02:57]} 25. Rc2 {[%emt 0:03:57]} Rhc8 {[%emt 0:02:22]} 26. Rb2 {[%emt 0:12:41]} Kc7 {[%emt 0:04:00]} 27. Rab1 {[%emt 0:01:03]} b5 {[%emt 0:03:17]} 28. Rc1 {[%emt 0:00:26]} Kb6 {[%emt 0:00:42]} 29. Rc5 {[%emt 0:00:40]} (29. Rbc2 $14) 29... Nb7 $1 $11 {[%emt 0:01:56]} 30. Rc1 {[%emt 0:01:55][%cal Oh4h5]} Ra5 {[%emt 0:03:28]} (30... Nd6 $11) 31. Bc4 {[%emt 0:02:36]} (31. Rbb1 $14) 31... Nd6 {[%emt 0:01:01]} 32. Ba2 {[%emt 0:00:34]} Ra7 {[%emt 0:01:07]} 33. f3 {[%emt 0:02:55]} Rac7 {[%emt 0:01:43]} 34. Rbc2 {[%emt 0:00:38]} Nb7 {[%emt 0:01:47]} 35. Rd1 {[%emt 0:00:45]} c5 {[%emt 0:01:47]} 36. dxc5+ {[%emt 0:00:08]} Nxc5 {[%emt 0:00:04]} 37. Rd6+ {[%emt 0:00:16]} Ka5 {[%emt 0:00:09]} 38. Bd5 {[%emt 0:01:11]} Na6 {[%emt 0:03:02]} 39. Rxc7 {[%emt 0:00:47]} Rxc7 {[%emt 0:00:15][%mdl 4096] Endgame. KRB-KRN} 40. Rf6 {[%emt 0:00:18]} b4 {[%emt 0:01:38]} 41. Rxf7 {[%emt 0:08:30]} Rc2+ {[%emt 0:09:57]} (41... bxa3 42. Rxc7 Nxc7 43. Bg8 $16) 42. Kd3 $2 {[%emt 0:01:53][%mdl 8192] [#] White does not recover from this.} (42. Kd1 $15 b3 43. Rb7) 42... Rc5 $1 $19 {[%emt 0:05:24]} 43. Bc4 {[%emt 0:06:28] And now Ra7 would win.} bxa3 {[%emt 0:01:07]} 44. Ra7 {[%emt 0:00:32] [#]} (44. Rd7 $142 Nb4+ 45. Kc3 Rxc4+ 46. Kxc4) 44... Rxc4 $1 {[%emt 0:07:23][%mdl 512]} 45. Kxc4 {[%emt 0:00:09] KR-KN} a2 {[%emt 0:00:05] ( -> ...a3)} 46. Rb7 {[%emt 0:00:18]} a3 {[%emt 0:03:58]} 47. Rb5+ {[%emt 0:01:19]} Ka4 {[%emt 0:00:03]} 48. Rb6 {[%emt 0:00:20]} Nc7 {[%emt 0:01:59]} 49. Rb7 {[%emt 0:05:16]} Ka5 {[%emt 0:01:53]} ({Weaker is} 49... a1=B 50. Ra7+) 50. Ra7+ {[%emt 0:08:32]} Na6 {[%emt 0:00:09]} 51. Rb7 {[%emt 0:00:53]} a1=Q {[%emt 0:00:24] Weighted Error Value: White=0.65/Black=0.06 (flawless) .  Loses game:     	White=1     	---        Mistake:       	White=3     	Black=1      Inaccurate:     	White=2     	Black=1      OK:         	White=6     	Black=10     Best:        	White=1     	Black=2      Strong:       	---       	Black=2      Brilliant:      	---       	Black=1} ({Stronger than} 51... a1=B 52. Rb5+ Ka4 53. Rb6 $11) 0-1

[Event "Czech Extraliga 2023-24"]
[Site "Czech Republic"]
[Date "2024.04.07"]
[Round "11.4"]
[White "Movsesian, Sergei"]
[Black "Anton Guijarro, David"]
[Result "1/2-1/2"]
[ECO "B13"]
[WhiteElo "2616"]
[BlackElo "2673"]
[Annotator "TA"]
[PlyCount "78"]
[EventDate "2023.10.14"]
[EventCountry "CZE"]
[SourceTitle "playchess.com"]
[Source "ChessBase"]
[SourceQuality "1"]
[TimeControl "40/5400+30:1800+30"]

{[%evp 16,78,31,20,28,9,45,12,4,0,0,0,20,14,31,18,44,0,35,6,2,13,11,12,0,14,20,0,29,27,55,0,10,0,0,0,10,0,6,0,0,0,0,0,27,14,3,-5,0,-29,-43,-20,-17,-27,0,0,0,0,0,0,0,-27,27,20,63]} 1. e4 {[%emt 0:00:03]} c6 {[%emt 0:00:14]} 2. d4 {[%emt 0:00:37]} d5 {[%emt 0:00:07]} 3. exd5 {[%emt 0:00:35]} cxd5 {[%emt 0:00:06]} 4. Bd3 {[%emt 0:00:05]} Nc6 {[%emt 0:00:20]} 5. c3 {[%emt 0:00:05]} Qc7 {[%emt 0:00:32]} 6. h3 {[%emt 0:00:29]} e6 {[%emt 0:00:50]} 7. Nf3 {[%emt 0:01:20]} Bd6 {[%emt 0:00:14]} 8. O-O {[%emt 0:00:33]} Nf6 {[%emt 0:00:15]} 9. Re1 {[%emt 0:01:37]} O-O {[%emt 0:00:16]} 10. a4 {[%emt 0:01:05]} Bd7 {[%emt 0:02:50]} 11. Na3 {[%emt 0:03:08]} a6 {[%emt 0:00:41] Wards off Nb5} 12. Bg5 {[%emt 0:02:34]} Ne7 {[%emt 0:14:01]} 13. Ne5 {[%emt 0:11:00]} Be8 {[%emt 0:05:00]} 14. Bh4 {[%emt 0:16:11]} Ng6 {[%emt 0:08:07]} 15. Bg3 {[%emt 0:00:46]} Bc6 {[%emt 0:00:38]} 16. c4 {[%emt 0:21:19]} (16. Nxg6 {simplifies} hxg6 17. Bxd6 Qxd6 18. Nc2) 16... Qe7 17. Nxg6 {[%emt 0:37:33]} hxg6 {[%emt 0:25:09]} (17... fxg6 {seems wilder.} 18. Bxd6 Qxd6 19. Qd2 dxc4 20. Nxc4 Qxd4 21. Bf5 Qxd2 22. Bxe6+ Kh8) 18. Bxd6 Qxd6 {[%emt 0:00:10]} 19. c5 {[%emt 0:00:00]} Qf4 {[%emt 0:01:03]} 20. Nc2 {[%emt 0:00:00]} a5 {[%emt 0:02:51]} 21. Qc1 {[%emt 0:00:00]} Qh4 {[%emt 0:00:52]} 22. Qe3 {[%emt 0:00:00]} g5 {[%emt 0:07:40]} 23. f3 {[%emt 0:00:00]} Nh5 {[%emt 0:02:43][%cal Bf6h5,Bh5f4,Bf4g6,Bg6h4][%mdl 32]} 24. Qf2 {[%emt 0:00:00]} Rfe8 {[%emt 0:03:47]} 25. Bb5 {[%emt 0:00:00]} Nf4 {[%emt 0:02:38]} 26. Re3 {[%emt 0:00:00]} Qh6 {[%emt 0:02:45]} 27. Kh2 {[%emt 0:00:00]} Qf6 {[%emt 0:02:08]} 28. Rae1 {[%emt 0:00:00]} Rec8 {[%emt 0:00:29]} 29. Rc3 {[%emt 0:00:00]} Rab8 {[%emt 0:03:28]} 30. Qd2 {[%emt 0:00:00]} Ng6 {[%emt 0:05:10]} 31. Ne3 {[%emt 0:00:00]} Nh4 {[%emt 0:00:28]} 32. Ng4 {[%emt 0:00:26]} Qf4+ {[%emt 0:00:35]} 33. Qxf4 {[%emt 0:00:13]} gxf4 {[%emt 0:00:03]} 34. Bd3 {[%emt 0:00:21]} Be8 {[%emt 0:05:24]} 35. Rb1 {[%emt 0:03:24]} f6 {[%emt 0:01:51][%cal Oe8g6]} 36. b4 {[%emt 0:01:10]} axb4 {[%emt 0:01:09]} 37. Rxb4 {[%emt 0:00:01]} Ra8 {[%emt 0:01:13]} 38. Bc2 {[%emt 0:00:07]} Bc6 {[%emt 0:01:24]} ({Black should try} 38... Ra7) 39. g3 $11 {[%emt 0:01:16]} fxg3+ {[%emt 0:00:35] Weighted Error Value: White=0.10 (very precise) /Black=0.13 (very precise) .  Mistake:       	---       	Black=1      Inaccurate:     	White=6     	Black=7      OK:         	White=12    	Black=12     Best:        	White=1     	---} 1/2-1/2

[Event "Czech Extraliga 2023-24"]
[Site "Czech Republic"]
[Date "2024.04.07"]
[Round "11.4"]
[White "Krejci, Jan"]
[Black "Miesbauer, Jan"]
[Result "1-0"]
[ECO "A18"]
[WhiteElo "2530"]
[BlackElo "2385"]
[Annotator "TA"]
[PlyCount "59"]
[EventDate "2023.10.14"]
[EventCountry "CZE"]
[SourceTitle "playchess.com"]
[Source "ChessBase"]
[SourceQuality "1"]
[TimeControl "40/5400+30:1800+30"]

{[%evp 9,59,37,27,41,39,43,66,61,86,84,89,26,15,-8,-10,-36,-15,-28,0,-6,-3,-15,-3,-16,-20,-13,2,8,6,-17,31,16,45,60,60,76,51,60,53,65,327,327,322,326,329,333,329,318,727,729,683,656]} 1. c4 {[%emt 0:00:03]} Nf6 {[%emt 0:00:15]} 2. Nc3 {[%emt 0:00:19]} e6 {[%emt 0:03:06]} 3. e4 {[%emt 0:03:45][%cal Be2e4,Be4e5][%mdl 32]} d5 {[%emt 0:02:49]} 4. e5 {[%emt 0:00:08]} Ne4 {[%emt 0:00:41]} 5. Nf3 {[%emt 0:09:07]} c5 {[%emt 0:11:45]} 6. cxd5 {[%emt 0:01:43]} Nxc3 {[%emt 0:01:47]} 7. dxc3 {[%emt 0:03:36] [#] d6 would now be deadly.} Qxd5 {[%emt 0:02:42]} 8. Qc2 {[%emt 0:07:59] White is slightly better.} Nd7 {[%emt 0:08:32]} 9. Bf4 {[%emt 0:01:46]} h6 {[%emt 0:07:56]} 10. Qa4 {[%emt 0:12:08]} ({White should play} 10. Be2 $16) 10... a6 $11 {[%emt 0:05:09]} 11. Rd1 {[%emt 0:04:17]} b5 $1 {[%emt 0:01:31]} 12. Qc2 {[%emt 0:12:21]} Qc6 {[%emt 0:02:20]} 13. c4 {[%emt 0:00:01]} bxc4 {[%emt 0:01:23]} 14. Bxc4 {[%emt 0:02:35]} Nb6 {[%emt 0:02:22]} 15. Be2 {[%emt 0:04:29]} Bb7 {[%emt 0:00:57]} 16. h4 {[%emt 0:00:05]} Be7 {[%emt 0:01:15]} 17. Rh3 {[%emt 0:00:55][%cal Bh1h3,Bh3g3,Bg3a3,Ba3b3,Bb3b7][%mdl 32]} Qa4 {[%emt 0:13:28]} 18. Qxa4+ {[%emt 0:02:17]} Nxa4 {[%emt 0:00:05]} 19. Rg3 {[%emt 0:02:51]} g6 {[%emt 0:00:48]} (19... Nxb2 $2 20. Rb1 $18) (19... Rb8 $11) 20. Nd2 $14 {[%emt 0:03:22]} Bxh4 {[%emt 0:06:32]} 21. Ra3 {[%emt 0:00:46]} Nb6 {[%emt 0:02:36]} 22. Rb3 {[%emt 0:00:04]} Bd8 {[%emt 0:05:35]} 23. Nc4 $36 {[%emt 0:00:10][%mdl 2048] White has good play.} Nxc4 {[%emt 0:02:56]} 24. Rxb7 {[%emt 0:00:09]} Ba5+ $2 {[%emt 0:01:50][%mdl 8192] [#] Black is weak on the light squares. Loses the game.} (24... Na5 $14 25. Rbd7 Bg5) 25. Kf1 $18 {[%emt 0:03:56]} g5 {[%emt 0:00:53]} 26. Bxc4 {[%emt 0:02:54]} gxf4 {[%emt 0:01:25]} 27. Rdd7 {[%emt 0:00:02]} O-O {[%emt 0:02:45]} 28. Bxe6 {[%emt 0:00:09]} Rad8 $2 {[%emt 0:00:25]} ({Stronger than} 28... fxe6 29. Rg7+ Kh8 30. Rh7+ Kg8 31. Rbg7#) (28... Rfb8 29. Rxb8+ (29. Rxf7 Rxb7 30. Rxb7+ Kf8 $18) (29. Bxf7+ Kf8 $18) 29... Rxb8) 29. Bxf7+ {[%emt 0:01:19]} Kg7 {[%emt 0:02:12]} 30. Bh5+ {[%emt 0:00:33] Weighted Error Value: White=0.10 (very precise) /Black=0.29 (precise) .  Loses game:     	---       	Black=1      Mistake:       	White=1     	Black=2      Inaccurate:     	White=1     	Black=2      OK:         	White=6     	Black=9      Best:        	White=6     	Black=2      Strong:       	---       	Black=1} 1-0

[Event "Czech Extraliga 2023-24"]
[Site "Czech Republic"]
[Date "2024.04.07"]
[Round "11.4"]
[White "Bernasek, Jan"]
[Black "Cvek, Robert"]
[Result "1/2-1/2"]
[ECO "D35"]
[WhiteElo "2524"]
[BlackElo "2447"]
[Annotator "TA"]
[PlyCount "80"]
[EventDate "2023.10.14"]
[EventCountry "CZE"]
[SourceTitle "playchess.com"]
[Source "ChessBase"]
[SourceQuality "1"]
[TimeControl "40/5400+30:1800+30"]

{[%evp 13,80,30,41,43,45,46,49,36,43,39,43,28,27,0,14,5,32,33,74,63,69,54,57,57,65,20,53,62,62,59,61,69,56,56,65,58,66,71,91,78,79,64,63,33,44,37,66,43,43,31,37,0,14,13,20,0,0,0,41,41,41,41,41,41,41,41,166,14,10]} 1. d4 {[%emt 0:01:15]} Nf6 {[%emt 0:00:09]} 2. c4 {[%emt 0:00:20]} e6 {[%emt 0:00:11]} 3. Nc3 {[%emt 0:00:07]} d5 {[%emt 0:00:18]} 4. cxd5 {[%emt 0:00:08]} exd5 {[%emt 0:00:03]} 5. Bg5 {[%emt 0:00:15]} c6 {[%emt 0:00:06]} 6. e3 {[%emt 0:00:11]} Bf5 {[%emt 0:01:02]} 7. Qf3 {[%emt 0:01:18]} Be6 {[%emt 0:00:12]} 8. Bxf6 {[%emt 0:03:29]} Qxf6 {[%emt 0:00:06]} 9. Qxf6 {[%emt 0:00:05]} gxf6 {[%emt 0:00:05]} 10. Nf3 {[%emt 0:01:18] White is slightly better.} Nd7 {[%emt 0:00:16][%cal Bb8d7,Bd7b6,Bb6c4][%mdl 32]} 11. Bd3 {[%emt 0:01:17]} Nb6 {[%emt 0:00:06]} 12. Ne2 {[%emt 0:03:50]} Nc4 {[%emt 0:04:40]} 13. O-O-O {[%emt 0:02:20]} Nd6 {[%emt 0:00:21]} 14. Ng3 {[%emt 0:04:00]} Bh6 {[%emt 0:14:52][%cal Bf8h6,Bh6g5,Bg5h4,Bh4f2][%mdl 32]} 15. Nh4 {[%emt 0:05:18]} Bg5 {[%emt 0:00:10]} 16. Nhf5 {[%emt 0:04:13]} Bxf5 {[%emt 0:10:39]} 17. Bxf5 {[%emt 0:03:17]} Bh4 {[%emt 0:00:33] [#] White must now prevent ...Bxg3.} 18. Bd3 {[%emt 0:01:27]} Ke7 {[%emt 0:00:17]} 19. Rhe1 {[%emt 0:16:35]} f5 {[%emt 0:07:04]} 20. Nxf5+ {[%emt 0:08:21]} Nxf5 {[%emt 0:00:15]} 21. Bxf5 {[%emt 0:04:00]} Bxf2 {[%emt 0:00:57]} 22. Re2 {[%emt 0:00:12]} Bh4 {[%emt 0:00:15]} 23. e4 {[%emt 0:00:07][%cal Be3e4,Be4e5][%mdl 32]} Bg5+ {[%emt 0:01:35]} 24. Kc2 {[%emt 0:03:01]} Kd6 {[%emt 0:09:59]} 25. Rf1 {[%emt 0:05:52]} Rae8 {[%emt 0:07:33]} 26. e5+ {[%emt 0:03:25]} Ke7 {[%emt 0:00:13]} 27. Kd3 {[%emt 0:04:23] White is more active.} h5 {[%emt 0:08:16]} 28. Ref2 {[%emt 0:04:15]} Ref8 {[%emt 0:01:26]} 29. Bh3 {[%emt 0:01:22]} Rhg8 {[%emt 0:01:41]} 30. Rf5 {[%emt 0:00:30]} a5 {[%emt 0:03:09]} 31. R1f3 {[%emt 0:02:11]} Rg6 {[%emt 0:06:05]} 32. g3 {[%emt 0:04:12]} a4 {[%emt 0:12:52]} 33. Kc3 {[%emt 0:03:00]} Rg7 {[%emt 0:04:34]} 34. Kb4 {[%emt 0:06:01]} Ra8 $1 {[%emt 0:00:05]} 35. Kc3 {[%emt 0:02:02]} Rh8 {[%emt 0:00:34]} 36. Bf1 {[%emt 0:00:54] h4 is the strong threat.} h4 {[%emt 0:00:20]} 37. g4 {[%emt 0:00:21]} Ra8 {[%emt 0:03:07]} 38. Kc2 {[%emt 0:01:21]} Ra5 {[%emt 0:01:03]} 39. h3 {[%emt 0:01:20]} b6 {[%emt 0:01:05]} (39... Ra7 $14) 40. Rd3 $2 {[%emt 0:01:42] [#]} (40. Rf6 $1 $18 {[%cal Rf6c6]} c5 41. Rxb6 cxd4 42. Bb5) 40... c5 {[%emt 0:03:16] Weighted Error Value: White=0.15 (very precise) /Black=0.15 (very precise) .  Mistake:       	White=1     	Black=1      Inaccurate:     	White=4     	Black=5      OK:         	White=10    	Black=11     Best:        	White=2     	Black=1      Strong:       	---       	Black=1} 1/2-1/2

[Event "Czech Extraliga 2023-24"]
[Site "Czech Republic"]
[Date "2024.04.07"]
[Round "11.4"]
[White "Ponizil, Cyril"]
[Black "Vykouk, Jan"]
[Result "0-1"]
[ECO "B70"]
[WhiteElo "2467"]
[BlackElo "2493"]
[Annotator "RC"]
[PlyCount "72"]
[EventDate "2023.10.14"]
[EventCountry "CZE"]
[SourceTitle "playchess.com"]
[Source "ChessBase"]
[SourceQuality "1"]
[TimeControl "40/5400+30:1800+30"]

1. e4 {[%emt 0:00:02]} c5 {[%emt 0:00:06]} 2. Nf3 {[%emt 0:00:03]} d6 {[%emt 0:00:06]} 3. d4 {[%emt 0:00:03]} cxd4 {[%emt 0:00:06]} 4. Nxd4 {[%emt 0:00:04]} Nf6 {[%emt 0:00:06]} 5. Nc3 {[%emt 0:00:02]} Nc6 {[%emt 0:00:09]} 6. Be2 {[%emt 0:02:08]} g6 {[%emt 0:04:20]} 7. O-O {[%emt 0:00:22]} Bg7 {[%emt 0:00:04]} 8. Nb3 {[%emt 0:00:07]} O-O {[%emt 0:00:23]} 9. Re1 {[%emt 0:00:05]} a6 {[%emt 0:08:07]} 10. Bg5 {[%emt 0:02:06]} h6 {[%emt 0:00:48]} 11. Bh4 {[%emt 0:00:05]} b5 {[%emt 0:01:54]} 12. Bf1 {[%emt 0:00:06]} Bb7 {[%emt 0:04:50]} 13. Qd2 {[%emt 0:04:17]} g5 {[%emt 0:01:30]} 14. Bg3 {[%emt 0:00:05]} Nh5 {[%emt 0:00:14]} 15. a4 {[%emt 0:10:20]} Nxg3 {[%emt 0:02:06]} 16. hxg3 {[%emt 0:00:04]} b4 {[%emt 0:00:11]} 17. Nd1 {[%emt 0:00:04]} a5 {[%emt 0:00:30]} 18. Rb1 {[%emt 0:05:44]} e6 {[%emt 0:05:13]} 19. c3 {[%emt 0:04:51]} Rc8 {[%emt 0:02:48]} 20. cxb4 {[%emt 0:14:37]} Nxb4 {[%emt 0:01:18]} 21. Nc3 {[%emt 0:00:05]} d5 {[%emt 0:10:19]} 22. exd5 {[%emt 0:00:10]} Nxd5 {[%emt 0:03:42]} 23. Nxd5 {[%emt 0:11:47]} Bxd5 {[%emt 0:00:06]} 24. Nxa5 {[%emt 0:00:45]} Qb6 {[%emt 0:05:51]} 25. b4 {[%emt 0:05:23]} Bc3 {[%emt 0:00:07]} 26. Qe3 {[%emt 0:00:03]} Bd4 {[%emt 0:00:06]} 27. Qd2 {[%emt 0:02:24]} Rc3 {[%emt 0:13:33]} 28. Rbd1 {[%emt 0:05:06]} Bg7 {[%emt 0:01:26]} 29. Rb1 {[%emt 0:01:48]} Rfc8 {[%emt 0:05:01]} 30. Re2 {[%emt 0:12:30]} Ra3 {[%emt 0:02:56]} 31. Qd1 {[%emt 0:04:20]} Rxg3 {[%emt 0:07:38]} 32. Nb3 {[%emt 0:00:58]} Rg4 {[%emt 0:03:06]} 33. Rc2 {[%emt 0:04:06]} Rxc2 {[%emt 0:00:15]} 34. Qxc2 {[%emt 0:00:05]} Rxb4 {[%emt 0:01:26]} 35. a5 {[%emt 0:03:50]} Qd6 {[%emt 0:03:24]} 36. Nc1 {[%emt 0:04:36]} Rh4 {[%emt 0:01:32]} 0-1